bitfinex/quotes_ETHUSD_20241003
["timestamp","ask_amount","ask_price","bid_price","bid_amount"]
[1727959232632,0.44427978,2352.5,2352.2,4.2512]
[1727959233036,0.44427978,2352.5,2352.4,4.25097]
[1727959233237,0.44427978,2352.5,2352.4,8.13528377]
[1727959233421,0.44427978,2352.5,2352.4,8.05027]
[1727959233737,4.24958,2353.2,2352.7,4.25036]
[1727959233935,4.25,2353.0,2352.5,3.0]
[1727959234147,5.06882,2352.8,2352.3,4.25105]
[1727959234295,4.24964,2353.2,2352.4,0.08501593]
[1727959234663,4.24943,2353.3,2352.9,4.24998]
[1727959234872,0.7559,2353.4,2352.7,4.25033]
[1727959234873,4.24973,2353.1,2352.7,4.25035]
[1727959235171,4.24937,2353.3,2352.9,4.24999]
[1727959235332,9.25443,2353.4,2352.9,4.24999]
[1727959235538,4.24954,2353.2,2352.8,4.25015]
[1727959235854,0.925443,2353.3,2352.8,4.25015]
[1727959235855,5.174943,2353.3,2352.9,4.25006]
[1727959236032,4.2495,2353.3,2352.9,4.25006]
[1727959236655,0.7559,2353.4,2352.9,4.25006]
[1727959236860,4.24914,2353.5,2353.1,4.24962]
[1727959237016,0.7995,2353.6,2353.1,8.49924]
[1727959237017,5.04831,2353.6,2353.1,8.49924]
[1727959237227,0.929704,2353.5,2353.1,4.24962]
[1727959237462,4.24917,2353.4,2352.7,4.2503]
[1727959237675,4.24964,2353.2,2352.7,4.2503]
[1727959237830,0.5178874,2353.3,2352.8,4.25024]
[1727959238025,0.5178874,2353.3,2352.9,4.25005]
[1727959238276,0.5178874,2353.3,2352.7,4.25029]
[1727959238277,4.24929,2353.4,2352.8,4.25025]
[1727959238575,4.24918,2353.4,2352.9,4.25005]
[1727959238739,4.754048,2353.4,2353.0,4.24989]
[1727959238942,4.24953,2353.2,2352.8,4.25025]
[1727959239250,4.24937,2353.3,2352.9,4.24999]
[1727959239452,0.7995,2353.6,2352.8,4.25023]
[1727959239453,4.24914,2353.5,2352.8,4.25023]
[1727959239637,4.24914,2353.5,2352.9,4.24996]
[1727959240035,4.24914,2353.5,2353.1,4.24963]
[1727959240377,4.24873,2353.7,2353.3,4.24925]
[1727959240378,4.24865,2353.7,2353.3,4.24925]
[1727959240528,4.24906,2353.5,2353.1,5.05806]
[1727959240735,4.24866,2353.7,2353.3,4.24925]
[1727959241228,4.24883,2353.6,2353.2,4.2494]
[1727959241545,4.24899,2353.5,2353.0,8.49953]
[1727959241741,4.79376989,2353.6,2353.2,4.2494]
[1727959242180,4.24865,2353.7,2353.2,4.2494]
[1727959242383,5.44914891,2353.8,2353.1,0.08498697]
[1727959242560,4.24871,2353.7,2353.3,4.24934]
[1727959242755,5.9940638,2353.8,2353.3,4.24934]
[1727959242982,1.20056891,2353.8,2353.5,4.24898]
[1727959243181,0.44416891,2353.8,2353.5,4.24898]
[1727959243606,0.44416891,2353.8,2353.6,4.24868]
[1727959244092,5.04999,2354.1,2353.6,4.24867]
[1727959244267,0.44419693,2353.8,2353.7,4.24861]
[1727959244469,0.44419693,2353.8,2353.7,5.0835791]
[1727959245109,4.24721,2354.5,2354.1,4.24788]
[1727959245393,5.04162,2354.7,2354.3,4.24752]
[1727959245809,0.44416522,2354.9,2354.0,0.7673]
[1727959245954,0.44416522,2354.9,2354.8,4.24664]
[1727959246456,4.24574,2355.3,2354.8,4.24664]
[1727959246766,0.44399717,2354.9,2354.8,4.24661]
[1727959247184,0.7532,2355.5,2354.9,4.24643]
[1727959247382,0.4440129,2354.9,2354.8,4.24663]
[1727959247698,0.7514,2355.8,2354.9,0.7607]
[1727959247861,4.24466,2355.9,2355.4,4.24543]
[1727959248059,4.24487,2355.8,2355.2,8.49157]
[1727959248271,4.68893225,2355.8,2355.2,4.24576]
[1727959248458,4.68893225,2355.8,2354.9,0.7607]
[1727959248459,0.44408225,2355.8,2355.3,0.08491002]
[1727959248654,0.44408225,2355.8,2354.9,5.00715]
[1727959248655,4.24448,2356.0,2355.4,4.24546]
[1727959249357,0.7514,2356.1,2355.0,4.746975]
[1727959249599,4.24484,2355.8,2355.1,7.2461]
[1727959249841,4.669664,2355.7,2355.1,7.2461]
[1727959250045,0.424484,2355.7,2355.1,7.2461]
[1727959250250,4.2452,2355.6,2355.1,7.2461]
[1727959250540,4.2452,2355.6,2354.9,0.7607]
[1727959250541,5.02821,2355.6,2354.9,0.7607]
[1727959250840,0.5452694,2355.5,2355.0,4.24612]
[1727959251056,4.7906594,2355.5,2355.0,4.24612]
[1727959251355,4.24557,2355.4,2355.0,4.24612]
[1727959251647,4.7906894,2355.5,2355.0,8.4923]
[1727959251806,4.7906894,2355.5,2355.0,4.24612]
[1727959252008,5.22747994,2355.4,2355.0,4.24612]
[1727959253142,4.24582,2355.3,2354.7,0.7668]
[1727959253348,4.24628,2355.1,2354.6,4.24686]
[1727959253530,4.24628,2355.1,2354.7,4.24681]
[1727959254124,4.24574,2355.3,2354.7,4.33173916]
[1727959254125,4.24594,2355.2,2354.7,4.33173916]
[1727959254320,4.24611,2355.1,2354.5,0.7668]
[1727959254535,5.04231,2355.1,2354.5,0.7668]
[1727959254845,4.24637,2355.0,2354.5,5.01397]
[1727959255419,4.24637,2355.0,2354.5,9.26105]
[1727959255626,4.24637,2355.0,2354.5,5.01388]
[1727959256012,5.04232,2355.1,2354.6,4.33189104]
[1727959256250,4.24612,2355.1,2354.7,4.24681]
[1727959256510,4.24612,2355.1,2354.4,3.0]
[1727959256511,0.928819,2355.1,2354.4,3.0]
[1727959256710,4.24688,2354.7,2354.2,0.776]
[1727959256949,4.24688,2354.7,2353.9,0.776]
[1727959256950,4.2477,2354.3,2353.9,0.776]
[1727959257207,4.24792,2354.1,2353.6,0.8234]
[1727959257338,5.08064,2354.4,2354.0,4.24808]
[1727959257539,4.24758,2354.3,2353.9,4.24812]
[1727959257851,4.24758,2354.3,2353.6,0.8234]
[1727959257852,4.24777,2354.2,2353.6,5.07217]
[1727959258064,4.24795,2354.1,2353.6,5.07217]
[1727959258220,4.24769,2354.3,2353.9,4.24822]
[1727959258640,4.24744,2354.4,2353.9,4.33317883]
[1727959258845,8.49457,2354.5,2354.0,4.24794]
[1727959259073,4.24737,2354.4,2353.9,4.24822]
[1727959259220,4.24737,2354.4,2354.0,0.08495314]
[1727959259553,8.49488,2354.4,2354.0,0.08495314]
[1727959259855,8.49488,2354.4,2353.7,4.24848]
[1727959259856,4.24787,2354.2,2353.7,4.24848]
[1727959260018,4.24757,2354.3,2353.8,0.08496076]
[1727959260217,0.8153,2354.7,2353.6,0.8234]
[1727959260438,4.24745,2354.4,2353.8,4.24833]
[1727959260633,8.49493,2354.4,2353.9,4.24826]
[1727959260854,8.49493,2354.4,2353.6,0.8234]
[1727959260855,0.8153,2354.7,2353.7,4.24855]
[1727959261168,4.24765,2354.3,2353.8,4.33338322]
[1727959261333,4.24703,2354.6,2353.6,0.8234]
[1727959261535,4.24792,2354.1,2353.6,5.07213]
[1727959261742,4.24792,2354.1,2353.6,5.15709664]
[1727959261931,4.24786,2354.2,2353.7,4.24854]
[1727959262133,8.49575,2354.2,2353.7,4.24854]
[1727959262327,4.24791,2354.1,2353.6,5.07219]
[1727959262667,4.24791,2354.1,2353.6,9.3209]
[1727959262845,4.24791,2354.1,2353.6,5.07211]
[1727959263043,4.24791,2354.1,2353.7,4.24858]
[1727959264172,0.4441965,2354.0,2353.7,4.24858]
[1727959264475,4.6923165,2354.0,2353.6,5.07211]
[1727959264810,0.4441965,2354.0,2353.6,4.24879]
[1727959264973,4.6922965,2354.0,2353.6,4.24879]
[1727959265179,4.6922965,2354.0,2353.4,5.01645]
[1727959265180,4.24842,2353.9,2353.4,5.01645]
[1727959265381,4.24873,2353.7,2353.3,4.24933]
[1727959265588,4.6923565,2354.0,2353.1,5.0299]
[1727959265909,4.6923565,2354.0,2353.4,4.24909]
[1727959266115,4.6923565,2354.0,2353.5,4.24895]
[1727959266413,4.24853,2353.8,2353.2,0.50299]
[1727959266616,8.49708,2353.8,2353.3,4.24924]
[1727959266775,4.24863,2353.7,2353.3,4.24924]
[1727959267304,4.24853,2353.8,2353.4,4.24914]
[1727959267527,4.6924065,2354.0,2353.5,4.33387565]
[1727959267673,4.6924065,2354.0,2353.5,4.33386958]
[1727959267869,4.24828,2353.9,2353.5,4.2489]
[1727959268073,0.4441965,2354.0,2353.6,0.08496868]
[1727959268383,0.4441965,2354.0,2353.7,5.04065]
[1727959268608,0.4441965,2354.0,2353.9,4.24826]
[1727959268936,0.4441965,2354.0,2353.9,4.33321224]
[1727959269095,0.4441965,2354.0,2353.9,4.24826]
[1727959269697,0.4441965,2354.0,2353.9,4.33321283]
[1727959270150,0.4441965,2354.0,2353.7,0.7921]
[1727959270443,0.4441965,2354.0,2353.9,4.24826]
[1727959270596,0.4441965,2354.0,2353.9,4.33321205]
[1727959271341,0.4441965,2354.0,2353.8,4.2483]
[1727959272042,0.4441965,2354.0,2353.8,4.33325788]
[1727959272641,0.4441965,2354.0,2353.6,7.24871]
[1727959272834,0.4441965,2354.0,2353.9,4.24826]
[1727959273035,0.79,2354.4,2353.5,0.7999]
[1727959273209,4.24802,2354.1,2353.6,4.24872]
[1727959273410,4.69230956,2354.0,2353.6,4.24872]
[1727959273626,0.44418956,2354.0,2353.6,8.49742]
[1727959273803,4.24809,2354.0,2353.6,4.2487]
[1727959274202,1.26191322,2353.9,2353.2,5.07789]
[1727959274399,1.26191322,2353.9,2353.1,4.24968]
[1727959274400,4.24901,2353.5,2353.1,4.24968]
[1727959274639,4.24901,2353.5,2352.9,4.25005]
[1727959274640,0.8177,2353.3,2352.9,4.25005]
[1727959274940,5.06706,2353.3,2352.9,4.25005]
[1727959275148,4.24953,2353.2,2352.8,4.25023]
[1727959275346,5.06706,2353.3,2352.6,0.8285]
[1727959275347,0.8177,2353.3,2352.6,0.8285]
[1727959275501,5.06717,2353.3,2352.8,4.2501]
[1727959275707,4.24961,2353.2,2352.6,5.07894]
[1727959275899,0.8177,2353.3,2352.8,4.25013]
[1727959276103,4.24905,2353.5,2353.1,4.24959]
[1727959276346,4.2492,2353.4,2353.0,4.24974]
[1727959276513,5.01044,2353.6,2353.0,5.099725]
[1727959276717,4.24861,2353.8,2353.0,4.24989]
[1727959277051,4.24861,2353.8,2352.8,3.0]
[1727959277052,0.8136,2354.2,2353.8,4.24844]
[1727959277205,4.99838,2354.4,2353.9,4.24812]
[1727959277406,0.44427799,2354.5,2354.0,4.24804]
[1727959277732,0.44427799,2354.5,2354.2,4.24757]
[1727959277898,0.44427799,2354.5,2354.0,4.68120982]
[1727959277899,4.24736,2354.4,2354.0,4.24791]
[1727959278102,4.24736,2354.4,2354.0,8.49591]
[1727959278344,4.24736,2354.4,2354.0,4.24791]
[1727959278854,4.24793,2354.1,2353.7,4.24861]
[1727959279009,0.7568,2354.2,2353.7,4.24848]
[1727959279208,0.44427799,2354.5,2353.6,0.8203]
[1727959279209,0.44427799,2354.5,2354.2,4.24771]
[1727959279522,0.44427799,2354.5,2354.2,4.672391]
[1727959279845,0.44427799,2354.5,2354.2,4.24762]
[1727959280162,4.69153799,2354.5,2353.9,4.24817]
[1727959280456,4.24773,2354.2,2353.7,4.24846]
[1727959280655,5.03739,2354.4,2353.8,4.24841]
[1727959281199,4.24774,2354.2,2353.7,4.24861]
[1727959281441,4.24797,2354.1,2353.7,4.24861]
[1727959281739,4.24757,2354.3,2353.8,4.24837]
[1727959281939,4.24773,2354.2,2353.8,4.24837]
[1727959282302,4.2479,2354.1,2353.5,4.24883]
[1727959282512,4.24815,2354.0,2353.6,4.24875]
[1727959282705,4.2479,2354.1,2353.4,5.03782]
[1727959282905,4.24826,2353.9,2353.5,4.24897]
[1727959283147,4.24776,2354.2,2353.4,0.7888]
[1727959283316,4.751526,2354.2,2353.6,0.04462108]
[1727959283516,4.751526,2354.2,2353.4,0.7888]
[1727959283517,4.751526,2354.2,2353.8,4.24837]
[1727959284242,4.751526,2354.2,2353.4,4.24915]
[1727959284243,4.24852,2353.8,2353.4,4.24915]
[1727959284783,0.7878,2353.9,2353.1,4.24958]
[1727959284924,4.24889,2353.6,2353.2,4.2495]
[1727959285250,4.24889,2353.6,2352.9,4.25004]
[1727959285251,5.03684,2353.4,2352.9,4.25004]
[1727959285405,5.03684,2353.4,2352.7,0.779]
[1727959285406,0.7876,2353.4,2352.7,0.779]
[1727959285605,0.88582914,2354.2,2352.7,0.779]
[1727959285606,0.7876,2353.7,2353.4,4.24909]
[1727959285808,0.7876,2353.7,2353.4,4.24908]
[1727959286044,0.7876,2353.7,2353.4,8.49814]
[1727959286358,0.7876,2353.7,2353.3,4.24932]
[1727959286654,0.22145729,2354.1,2353.5,4.24891]
[1727959286655,5.0425,2354.0,2353.5,4.24891]
[1727959286806,0.95120073,2353.9,2353.6,4.24879]
[1727959287014,0.95120073,2353.9,2353.5,4.24891]
[1727959287454,5.19956073,2353.9,2353.5,8.49779]
[1727959287653,5.19956073,2353.9,2353.5,4.24888]
[1727959288470,5.19956073,2353.9,2353.0,0.7546]
[1727959288471,0.59939607,2353.8,2353.0,0.7546]
[1727959288790,4.24876,2353.7,2353.2,4.24945]
[1727959289287,4.24876,2353.7,2353.3,4.24933]
[1727959289691,8.49756,2353.7,2353.2,4.24945]
[1727959290051,4.24876,2353.7,2353.2,4.24945]
[1727959290249,0.44423631,2353.6,2353.3,4.24932]
[1727959291503,0.44423631,2353.6,2353.5,4.24899]
[1727959291805,0.44423631,2353.6,2353.5,5.06979]
[1727959291991,0.44423631,2353.6,2353.5,5.15476128]
[1727959292416,0.44423631,2353.6,2353.5,8.06979]
[1727959292624,0.44423631,2353.6,2353.5,8.70474886]
[1727959292827,0.44423631,2353.6,2353.5,10.49972768]
[1727959292970,0.44423631,2353.6,2353.5,9.94972768]
[1727959293374,4.24781,2354.2,2353.8,4.24836]
[1727959293677,4.24751,2354.4,2353.8,4.24836]
[1727959293678,4.24757,2354.3,2353.8,4.24836]
[1727959294007,0.44418554,2354.1,2353.8,4.24836]
[1727959294599,0.7747,2354.0,2353.7,4.24854]
[1727959295111,0.7747,2354.0,2353.8,4.24836]
[1727959295295,0.7747,2354.0,2353.7,4.24854]
[1727959295513,0.7747,2354.0,2353.8,4.24827]
[1727959295807,0.7747,2354.0,2353.8,4.24836]
[1727959296218,0.44418554,2354.1,2353.9,4.24826]
[1727959296513,0.44418554,2354.1,2354.0,4.24808]
[1727959297783,0.44418554,2354.1,2353.9,4.24816]
[1727959298004,0.44418554,2354.1,2354.0,4.33303233]
[1727959298206,0.44418554,2354.1,2354.0,4.24808]
[1727959298411,0.44418554,2354.1,2354.0,4.33303044]
[1727959298571,0.44418554,2354.1,2354.0,5.26672948]
[1727959298971,0.44418554,2354.1,2354.0,5.18177904]
[1727959299217,0.44418554,2354.1,2354.0,8.23278889]
[1727959299386,0.44418554,2354.1,2354.0,8.18177904]
[1727959303596,5.04903,2354.7,2354.2,4.2476]
[1727959303810,0.96964426,2354.6,2354.2,4.2476]
[1727959304016,4.99895,2354.3,2353.9,4.24817]
[1727959304183,4.99895,2354.3,2354.0,4.24793]
[1727959304184,0.96964426,2354.2,2354.0,4.24793]
[1727959304617,0.96964426,2354.2,2353.8,0.08495901]
[1727959304618,0.37290116,2354.1,2353.8,4.24833]
[1727959304781,0.37290116,2354.1,2353.7,4.2486]
[1727959304982,0.37290116,2354.0,2353.8,4.2483]
[1727959305621,0.37290116,2353.9,2353.8,4.2483]
[1727959306484,0.37290116,2353.9,2353.8,4.24844]
[1727959307241,0.8197,2353.8,2353.4,4.24905]
[1727959307386,0.37290116,2353.7,2353.6,4.24864]
[1727959307735,0.37290116,2353.7,2353.4,4.24916]
[1727959307879,0.37290116,2353.6,2353.3,4.24918]
[1727959308085,0.37267025,2353.5,2353.3,4.24918]
[1727959308316,5.06817,2353.8,2353.3,8.49844]
[1727959308530,0.96896699,2353.7,2353.3,4.24918]
[1727959308724,0.96896699,2353.7,2353.5,4.24897]
[1727959308897,0.96896699,2353.7,2353.3,4.24926]
[1727959309081,5.21761699,2353.7,2353.3,4.24926]
[1727959309285,0.96896699,2353.6,2353.3,4.24926]
[1727959309523,0.37267961,2353.5,2353.3,4.24926]
[1727959309725,0.37267961,2353.4,2353.3,4.24926]
[1727959311225,5.2772357,2353.7,2353.3,4.24926]
[1727959311522,0.8197,2353.8,2353.5,4.24894]
[1727959311708,0.37256634,2353.6,2353.5,4.24894]
[1727959312427,0.37256634,2353.6,2353.4,4.24913]
[1727959312598,0.37256634,2353.5,2353.4,4.24913]
[1727959314629,0.37256711,2353.5,2353.4,4.24913]
[1727959315315,0.37256711,2353.5,2353.4,5.098975]
[1727959315628,0.00810782,2353.7,2353.2,4.24936]
[1727959315926,0.00810782,2353.5,2353.3,4.24921]
[1727959316490,0.00810782,2353.5,2353.0,0.777]
[1727959316690,0.80560782,2353.2,2352.8,7.25016]
[1727959316929,0.00810782,2352.9,2352.8,4.25016]
[1727959318429,0.00810782,2352.9,2352.8,7.25016]
[1727959318789,0.00810782,2352.9,2352.8,4.25016]
[1727959319387,0.45242757,2352.9,2352.8,4.25016]
[1727959320495,0.44431975,2352.9,2352.8,4.25016]
[1727959320689,0.45242757,2352.9,2352.8,4.25016]
[1727959321131,0.45242757,2352.9,2352.6,4.25059]
[1727959321309,0.00810782,2352.7,2352.5,4.2507]
[1727959321539,0.47023376,2352.8,2352.5,4.25066]
[1727959321726,0.00810782,2352.6,2352.5,4.25066]
[1727959323414,0.00810782,2352.7,2352.6,4.25061]
[1727959324340,0.45242757,2352.9,2352.6,4.25061]
[1727959324520,0.44431975,2352.9,2352.7,4.25032]
[1727959324720,0.44431975,2352.9,2352.8,4.25025]
[1727959324932,0.44431975,2352.9,2352.8,8.18530894]
[1727959325260,0.00810782,2353.4,2353.2,4.24937]
[1727959325443,0.7628,2353.8,2353.4,4.24901]
[1727959325648,0.3720016,2353.7,2353.5,4.24898]
[1727959325859,0.3720016,2353.6,2353.4,4.24901]
[1727959326064,1.1491202,2353.8,2352.8,8.100307]
[1727959326065,0.44418039,2353.7,2353.6,4.24881]
[1727959327847,0.45228821,2353.7,2353.6,4.24881]
[1727959328169,0.44418039,2353.7,2353.6,4.24881]
[1727959328373,0.44418039,2353.7,2353.6,5.14247992]
[1727959328528,0.44418039,2353.7,2353.6,5.99665699]
[1727959328733,0.44418039,2353.7,2353.6,4.24881]
[1727959328975,0.44418039,2353.7,2353.6,4.33377884]
[1727959331278,0.45228821,2353.7,2353.6,4.24881]
[1727959331461,0.44418039,2353.7,2353.0,0.7897]
[1727959331649,0.00810782,2353.4,2353.3,4.24935]
[1727959331851,0.00810782,2353.4,2353.3,4.33432425]
[1727959332241,0.00810782,2353.4,2353.2,4.24938]
[1727959332461,0.7825,2353.3,2353.0,4.24973]
[1727959332782,0.7825,2353.3,2352.3,4.9957509]
[1727959332783,0.00810782,2353.2,2352.3,4.9957509]
[1727959332962,0.00810782,2352.9,2352.7,4.25039]
[1727959333284,0.00810782,2352.9,2352.6,4.25048]
[1727959333484,4.24965,2353.2,2352.8,4.25025]
[1727959333860,0.00810782,2352.9,2352.8,4.25025]
[1727959334253,0.00810782,2353.2,2352.8,4.25025]
[1727959334453,0.7825,2353.3,2352.9,4.24991]
[1727959334661,0.37177129,2353.2,2352.9,4.24991]
[1727959334998,0.54036213,2353.2,2352.9,4.24991]
[1727959335495,0.54036213,2353.2,2352.8,4.25024]
[1727959335656,4.24962,2353.2,2352.8,4.25024]
[1727959335858,0.00810782,2352.9,2352.8,4.25018]
[1727959336203,0.7825,2353.3,2353.0,4.24988]
[1727959336399,0.00810782,2353.1,2353.0,4.24988]
[1727959336607,0.00810782,2353.2,2353.0,4.24988]
[1727959336851,0.00810782,2353.2,2353.1,4.24971]
[1727959337310,0.00810782,2353.2,2353.1,5.121473]
[1727959337510,0.00810782,2353.4,2353.3,4.24935]
[1727959338271,1.20318821,2353.7,2353.4,4.24905]
[1727959338480,1.20318821,2353.7,2353.5,4.24899]
[1727959339413,0.45228821,2353.7,2353.5,4.24883]
[1727959339626,0.45228821,2353.7,2353.6,4.24881]
[1727959339967,0.44418039,2353.7,2353.6,4.33377552]
[1727959340322,0.00810782,2354.2,2353.9,4.24826]
[1727959340674,0.00810782,2354.0,2353.9,4.24826]
[1727959340871,0.38002258,2354.0,2353.9,4.24826]
[1727959341102,0.00810782,2354.0,2353.9,4.24826]
[1727959341313,0.00810782,2354.0,2353.8,4.24841]
[1727959342218,4.25626782,2354.0,2353.4,4.24901]
[1727959342424,0.3718632,2353.9,2353.5,0.08498203]
[1727959342626,4.24825,2354.0,2353.5,4.24886]
[1727959342921,4.24825,2354.0,2353.6,4.24877]
[1727959342922,0.00810782,2353.7,2353.6,4.24877]
[1727959343220,0.00810782,2353.7,2353.5,4.24886]
[1727959343585,0.00810782,2353.7,2353.6,4.24881]
[1727959344134,0.00810782,2353.9,2353.6,4.24881]
[1727959344320,0.00810782,2353.7,2353.6,4.24881]
[1727959345263,0.00810782,2353.9,2353.8,4.24844]
[1727959345561,0.00810782,2353.9,2353.7,4.2486]
[1727959345562,5.05034,2354.4,2354.0,4.24806]
[1727959345857,0.96748865,2354.3,2354.0,4.24806]
[1727959346059,0.37211102,2354.2,2354.0,4.24806]
[1727959346264,5.58180587,2354.4,2353.9,4.24809]
[1727959346265,0.37211102,2354.1,2353.9,4.24809]
[1727959346418,0.00810782,2354.2,2354.0,4.24808]
[1727959346871,0.37219805,2354.1,2354.0,4.24808]
[1727959347370,0.37219805,2354.1,2353.8,4.24843]
[1727959347371,0.37219805,2354.1,2353.9,4.24823]
[1727959347533,0.81090782,2354.4,2354.1,4.2479]
[1727959347726,0.37229605,2354.3,2354.1,4.2479]
[1727959348062,0.37229605,2354.2,2354.1,4.2479]
[1727959348570,0.81090782,2354.4,2354.1,5.07921533]
[1727959348571,0.00810782,2354.4,2354.1,5.07921533]
[1727959348722,0.37236969,2354.3,2354.2,4.24772]
[1727959348917,0.00810782,2354.4,2354.3,4.24754]
[1727959349125,0.00810782,2354.6,2354.5,4.24718]
[1727959349318,0.38059269,2354.6,2354.5,4.24718]
[1727959349566,0.00810782,2354.6,2354.5,4.24718]
[1727959349764,1.24781526,2355.0,2354.5,4.24718]
[1727959349765,1.24781526,2355.0,2354.6,4.24692]
[1727959350028,0.44421526,2355.0,2354.9,4.24646]
[1727959350189,0.44421526,2355.0,2354.9,7.24646]
[1727959350351,0.44421526,2355.0,2354.9,7.33137431]
[1727959350551,0.44421526,2355.0,2354.9,8.70717431]
[1727959350754,0.00810782,2355.9,2355.7,4.24491]
[1727959351149,0.00810782,2355.9,2355.8,4.24484]
[1727959351887,0.7725,2356.1,2355.9,4.24463]
[1727959352033,0.78060782,2356.1,2355.9,4.24463]
[1727959352390,0.78060782,2356.1,2355.2,4.9957509]
[1727959352391,8.48958,2355.9,2355.3,4.24566]
[1727959352588,0.7711,2355.5,2355.0,4.24627]
[1727959352891,0.7711,2355.5,2355.1,4.24594]
[1727959352892,0.50974882,2355.4,2355.1,4.24594]
[1727959353037,0.50974882,2355.4,2355.2,4.24592]
[1727959353038,0.00810782,2355.4,2355.2,4.24592]
[1727959353431,0.00810782,2355.4,2355.0,8.49233]
[1727959353684,0.00810782,2355.2,2355.0,4.24614]
[1727959354057,0.00810782,2355.2,2355.1,4.24608]
[1727959354253,0.00810782,2355.2,2355.0,4.24614]
[1727959354652,0.00810782,2355.2,2355.0,8.49229]
[1727959355033,0.00810782,2355.4,2355.3,4.24574]
[1727959355487,0.00810782,2355.4,2355.0,4.24614]
[1727959355845,0.7711,2355.5,2355.0,4.24614]
[1727959355846,0.00810782,2355.2,2355.0,4.24614]
[1727959356346,4.25412782,2355.2,2354.8,4.2465]
[1727959356546,0.00810782,2354.9,2354.6,8.49375]
[1727959356847,0.00810782,2354.7,2354.6,7.24686]
[1727959357051,0.00810782,2354.7,2354.6,7.247]
[1727959358807,0.00810782,2354.7,2354.6,4.247]
[1727959359300,0.00810782,2354.7,2354.5,4.24717]
[1727959359705,0.00810782,2354.7,2354.5,8.49419]
[1727959360410,0.00810782,2354.7,2353.9,4.24816]
[1727959360713,4.25495782,2354.7,2354.3,4.24753]
[1727959360868,0.00810782,2354.4,2354.3,4.24753]
[1727959363711,0.00810782,2354.4,2354.2,8.49528]
[1727959363910,0.00810782,2354.4,2354.3,4.24754]
[1727959366175,0.00810782,2354.4,2354.2,4.24757]
[1727959366401,0.00810782,2354.4,2354.2,8.49522]
[1727959366613,0.00810782,2354.4,2354.3,4.24754]
[1727959367627,0.45226414,2354.4,2354.3,4.24754]
[1727959370810,0.45226414,2354.4,2354.2,4.24757]
[1727959371420,5.16963255,2354.4,2353.8,0.7972]
[1727959371599,0.00810782,2354.1,2354.0,4.24805]
[1727959373029,0.00810782,2354.1,2354.0,4.24804]
[1727959373520,0.45226414,2354.4,2354.0,4.24804]
[1727959373840,0.91409973,2354.4,2354.0,4.24804]
[1727959374022,0.44415632,2354.4,2354.0,4.24804]
[1727959374525,0.44415632,2354.4,2353.7,3.0]
[1727959374682,0.44415632,2354.4,2354.0,8.49594]
[1727959374879,0.00810782,2354.1,2354.0,4.24796]
[1727959375100,0.00810782,2354.1,2354.0,4.672756]
[1727959375427,0.45226414,2354.4,2354.1,4.24785]
[1727959375642,4.69968414,2354.4,2353.9,8.49619]
[1727959375940,4.69968414,2354.4,2353.1,4.9957509]
[1727959375941,5.06702,2353.8,2353.4,4.24914]
[1727959376144,4.24906,2353.5,2353.0,4.24976]
[1727959376443,4.24906,2353.5,2352.1,6.46633838]
[1727959376444,4.24962,2353.2,2352.6,5.01234]
[1727959376647,4.24962,2353.2,2352.8,4.25025]
[1727959376648,0.00810782,2353.0,2352.8,4.25025]
[1727959377105,0.00810782,2353.0,2352.6,4.25054]
[1727959377300,0.8185,2353.3,2352.6,4.25054]
[1727959377301,0.00810782,2352.7,2352.6,4.25054]
[1727959377545,0.00810782,2353.0,2352.9,4.25007]
[1727959377761,4.24972,2353.1,2352.5,8.50136]
[1727959378051,4.24972,2353.1,2352.6,4.2506]
[1727959378052,0.00810782,2352.7,2352.6,4.2506]
[1727959378853,4.24971,2353.1,2352.7,4.25042]
[1727959379057,0.00810782,2352.8,2352.7,4.25042]
[1727959379215,0.7682,2352.7,2352.4,4.25096]
[1727959379418,0.00810782,2352.5,2352.2,4.25132]
[1727959379621,0.00810782,2352.5,2352.1,4.25141]
[1727959379975,0.00810782,2352.3,2352.1,4.25141]
[1727959380140,0.00810782,2352.3,2352.0,4.25168]
[1727959380339,4.9957509,2353.0,2352.0,4.25168]
[1727959380340,0.00810782,2352.1,2352.0,4.25168]
[1727959380765,0.00810782,2352.1,2352.0,8.50328]
[1727959381558,0.00810782,2352.1,2351.9,4.25185]
[1727959381766,0.00810782,2352.1,2351.6,4.25241]
[1727959382081,0.00810782,2352.1,2351.5,5.04366]
[1727959382082,4.252,2351.9,2351.5,4.2526]
[1727959382377,4.252,2351.9,2351.3,4.25286]
[1727959382378,0.00810782,2351.6,2351.4,4.25278]
[1727959382531,4.25197,2351.9,2351.4,4.25278]
[1727959382732,4.25197,2351.9,2351.3,4.25286]
[1727959382733,4.25219,2351.8,2351.3,4.25286]
[1727959383236,4.25219,2351.8,2351.3,8.50571]
[1727959383569,0.00810782,2351.4,2351.3,8.50571]
[1727959383726,0.00810782,2351.4,2351.3,4.25285]
[1727959383928,0.00810782,2351.4,2351.2,8.50619]
[1727959384242,0.00810782,2351.4,2351.3,4.25296]
[1727959385072,0.00810782,2351.4,2351.3,4.33801495]
[1727959385372,0.45244593,2351.9,2351.5,4.2526]
[1727959385777,0.45244593,2351.9,2351.5,4.25251]
[1727959386283,0.00810782,2351.6,2351.5,4.25251]
[1727959387080,0.00810782,2351.6,2351.3,5.02773]
[1727959387081,0.00810782,2351.6,2351.3,4.25283]
[1727959387400,0.00810782,2351.4,2351.3,9.0459649]
[1727959387709,0.00810782,2351.4,2351.3,8.50562]
[1727959388149,0.00810782,2351.6,2351.5,4.2526]
[1727959388346,0.44433811,2351.9,2351.5,4.33764662]
[1727959388347,0.45244593,2351.9,2351.5,4.33764662]
[1727959388553,0.45244593,2351.9,2351.3,4.25283]
[1727959388734,0.799,2351.5,2351.1,4.25322]
[1727959388957,0.00810782,2351.2,2351.1,4.25322]
[1727959389279,0.00810782,2351.2,2350.9,4.25351]
[1727959389485,0.00810782,2351.0,2350.9,3.0]
[1727959389630,0.799,2351.5,2351.0,4.25335]
[1727959389631,0.00810782,2351.2,2351.0,4.25335]